[Event "Early-Titled-Tuesday-Blitz-July-09-2024"]
[Site "Chess.com"]
[Date "2024.07.09"]
[Round "6"]
[White "Jakhongir-Vakhidov"]
[Black "David_Arutinian"]
[Result "1-0"]
[WhiteElo "3023"]
[BlackElo "2828"]
[TimeControl "180+1"]
[EndTime "9:09:43 PDT"]
[Termination "Jakhongir-Vakhidov won by resignation"]

1. c4 {[%clk 0:03:00.9]} 1... e5 {[%clk 0:02:59.8]} 2. Nc3 {[%clk 0:02:59.9]}
2... Nf6 {[%clk 0:03:00.3]} 3. Nf3 {[%clk 0:03:00.2]} 3... Nc6 {[%clk
0:02:59.2]} 4. e4 {[%clk 0:03:00.2]} 4... d6 {[%clk 0:02:58.8]} 5. d4 {[%clk
0:02:59.9]} 5... Bg4 {[%clk 0:02:58.5]} 6. d5 {[%clk 0:03:00.3]} 6... Nd4 {[%clk
0:02:57.4]} 7. Be2 {[%clk 0:03:00.8]} 7... Nxe2 {[%clk 0:02:55.7]} 8. Qxe2
{[%clk 0:03:01.7]} 8... g6 {[%clk 0:02:54.1]} 9. h3 {[%clk 0:03:00.8]} 9... Bd7
{[%clk 0:02:53.7]} 10. O-O {[%clk 0:02:57.2]} 10... Bg7 {[%clk 0:02:53.5]} 11.
c5 {[%clk 0:02:40.5]} 11... O-O {[%clk 0:02:53]} 12. Be3 {[%clk 0:02:09]} 12...
Nh5 {[%clk 0:02:52.2]} 13. Qc4 {[%clk 0:01:55]} 13... Kh8 {[%clk 0:02:42.8]} 14.
Qb4 {[%clk 0:01:41.2]} 14... a5 {[%clk 0:02:28.2]} 15. Qxb7 {[%clk 0:01:31.5]}
15... f5 {[%clk 0:02:20.7]} 16. Bg5 {[%clk 0:01:22.5]} 16... Qb8 {[%clk
0:02:02]} 17. Qxb8 {[%clk 0:01:18.2]} 17... Rfxb8 {[%clk 0:02:01.5]} 18. c6
{[%clk 0:00:54.4]} 18... Bc8 {[%clk 0:02:00.8]} 19. b3 {[%clk 0:00:52.6]} 19...
h6 {[%clk 0:01:41.9]} 20. Bd2 {[%clk 0:00:48.6]} 20... Nf6 {[%clk 0:01:39.1]}
21. Be3 {[%clk 0:00:36.6]} 21... fxe4 {[%clk 0:01:26]} 22. Nd2 {[%clk
0:00:36.1]} 22... Ba6 {[%clk 0:01:26.5]} 23. Nc4 {[%clk 0:00:27.8]} 23... a4
{[%clk 0:01:20.5]} 24. Rfb1 {[%clk 0:00:27.9]} 24... Kg8 {[%clk 0:01:03]} 25.
Rc1 {[%clk 0:00:28.1]} 25... Kf7 {[%clk 0:00:52.1]} 26. Nd2 {[%clk 0:00:22.7]}
26... Bd3 {[%clk 0:00:47.5]} 27. bxa4 {[%clk 0:00:17.5]} 27... Rb2 {[%clk
0:00:46.1]} 28. Nb3 {[%clk 0:00:17.6]} 28... Bc4 {[%clk 0:00:42.5]} 29. Nd1
{[%clk 0:00:17.2]} 29... Rxb3 {[%clk 0:00:41.5]} 30. axb3 {[%clk 0:00:17.4]}
30... Bxb3 {[%clk 0:00:41.2]} 31. Nc3 {[%clk 0:00:17.5]} 31... Nxd5 {[%clk
0:00:41]} 32. Nxd5 {[%clk 0:00:17.9]} 32... Bxd5 {[%clk 0:00:40.5]} 33. a5
{[%clk 0:00:18.6]} 33... Ra6 {[%clk 0:00:38.5]} 34. Bb6 {[%clk 0:00:17.8]} 34...
cxb6 {[%clk 0:00:31]} 35. c7 {[%clk 0:00:17]} 35... Be6 {[%clk 0:00:30.8]} 36.
axb6 {[%clk 0:00:17.3]} 36... Rxb6 {[%clk 0:00:29.3]} 37. c8=Q {[%clk
0:00:17.5]} 37... Bxc8 {[%clk 0:00:30]} 38. Rxc8 {[%clk 0:00:17.5]} 38... Rb7
{[%clk 0:00:29.9]} 39. Rd8 {[%clk 0:00:14]} 39... Bf8 {[%clk 0:00:28.7]} 40. Rd1
{[%clk 0:00:12.5]} 40... Be7 {[%clk 0:00:27.8]} 41. Ra8 {[%clk 0:00:12.4]} 41...
Rd7 {[%clk 0:00:26.4]} 42. Ra4 {[%clk 0:00:12]} 42... d5 {[%clk 0:00:21.7]} 43.
Rxe4 {[%clk 0:00:12.1]} 43... Bf6 {[%clk 0:00:22.4]} 44. Re2 {[%clk 0:00:12]}
44... d4 {[%clk 0:00:22]} 45. Rd3 {[%clk 0:00:10.6]} 45... g5 {[%clk 0:00:22.1]}
46. g4 {[%clk 0:00:10.8]} 46... Re7 {[%clk 0:00:20]} 47. Re4 {[%clk 0:00:09.4]}
47... Ra7 {[%clk 0:00:19.7]} 48. Kg2 {[%clk 0:00:09.9]} 48... Ra2 {[%clk
0:00:19.7]} 49. Kf3 {[%clk 0:00:10.2]} 49... Rb2 {[%clk 0:00:17.9]} 50. Re2
{[%clk 0:00:09.8]} 50... Rb7 {[%clk 0:00:15.4]} 51. Ke4 {[%clk 0:00:10.1]} 51...
Ke6 {[%clk 0:00:16.1]} 52. Ra2 {[%clk 0:00:10.1]} 52... Rb1 {[%clk 0:00:16.4]}
53. Ra6+ {[%clk 0:00:10.1]} 53... Kf7 {[%clk 0:00:16.9]} 54. Rf3 {[%clk
0:00:10.3]} 54... Re1+ {[%clk 0:00:15.8]} 55. Kd5 {[%clk 0:00:10.9]} 55... d3
{[%clk 0:00:07.6]} 56. Raxf6+ {[%clk 0:00:11]} 56... Ke7 {[%clk 0:00:08.3]} 57.
Rf8 {[%clk 0:00:09.5]} 1-0

[Event "Early-Titled-Tuesday-Blitz-July-09-2024"]
[Site "Chess.com"]
[Date "2024.07.09"]
[Round "6"]
[White "kuzol"]
[Black "edgarhay012"]
[Result "1-0"]
[WhiteElo "2523"]
[BlackElo "2698"]
[TimeControl "180+1"]
[EndTime "9:09:43 PDT"]
[Termination "kuzol won by resignation"]

1. d4 {[%clk 0:03:00.9]} 1... Nf6 {[%clk 0:02:54.1]} 2. Nc3 {[%clk 0:02:59.3]}
2... d5 {[%clk 0:02:47.3]} 3. Bf4 {[%clk 0:02:58.6]} 3... c5 {[%clk 0:02:41.9]}
4. e3 {[%clk 0:02:57.5]} 4... a6 {[%clk 0:02:40.4]} 5. Nf3 {[%clk 0:02:56.4]}
5... Nc6 {[%clk 0:02:39.8]} 6. Ne5 {[%clk 0:02:56]} 6... Bf5 {[%clk 0:02:34.6]}
7. a3 {[%clk 0:02:33.7]} 7... e6 {[%clk 0:02:28.9]} 8. Bd3 {[%clk 0:02:22.8]}
8... cxd4 {[%clk 0:02:21]} 9. Nxc6 {[%clk 0:02:22.7]} 9... bxc6 {[%clk
0:02:18.2]} 10. exd4 {[%clk 0:02:23.3]} 10... Bxd3 {[%clk 0:02:02.4]} 11. Qxd3
{[%clk 0:02:24.2]} 11... c5 {[%clk 0:02:00.1]} 12. O-O {[%clk 0:02:15.3]} 12...
cxd4 {[%clk 0:01:52.8]} 13. Qxd4 {[%clk 0:02:13.9]} 13... Be7 {[%clk 0:01:53.2]}
14. Be5 {[%clk 0:02:01]} 14... O-O {[%clk 0:01:50.6]} 15. Rfe1 {[%clk
0:01:55.5]} 15... Rc8 {[%clk 0:01:50.3]} 16. Rad1 {[%clk 0:01:48.4]} 16... Bc5
{[%clk 0:01:39.9]} 17. Qh4 {[%clk 0:01:44.5]} 17... Ne4 {[%clk 0:01:24.7]} 18.
Rxe4 {[%clk 0:01:43.9]} 18... dxe4 {[%clk 0:00:49.1]} 19. Rxd8 {[%clk
0:01:40.3]} 19... Rfxd8 {[%clk 0:00:50]} 20. Qg4 {[%clk 0:01:11.3]} 20... Bf8
{[%clk 0:00:46.1]} 21. h4 {[%clk 0:01:08.1]} 21... f5 {[%clk 0:00:42.2]} 22. Qe2
{[%clk 0:01:06.8]} 22... Rc5 {[%clk 0:00:38.6]} 23. Bf4 {[%clk 0:01:04]} 23...
a5 {[%clk 0:00:37.5]} 24. Qa6 {[%clk 0:01:03.2]} 24... Kf7 {[%clk 0:00:19.1]}
25. h5 {[%clk 0:00:54.8]} 25... Be7 {[%clk 0:00:15.8]} 26. Qa7 {[%clk
0:00:46.8]} 26... h6 {[%clk 0:00:14.3]} 27. Be3 {[%clk 0:00:45]} 27... Rc6
{[%clk 0:00:12.2]} 28. Qxa5 {[%clk 0:00:44.1]} 28... Rd7 {[%clk 0:00:11.4]} 29.
Qb5 {[%clk 0:00:43.7]} 29... Rcc7 {[%clk 0:00:11]} 30. a4 {[%clk 0:00:43.9]}
30... Rb7 {[%clk 0:00:10.8]} 31. Qc4 {[%clk 0:00:38.5]} 31... Rxb2 {[%clk
0:00:09.8]} 32. Nb5 {[%clk 0:00:37.6]} 32... Rb1+ {[%clk 0:00:09.5]} 33. Kh2
{[%clk 0:00:37.7]} 33... Bf6 {[%clk 0:00:08.2]} 34. Nd6+ {[%clk 0:00:20.9]}
34... Ke7 {[%clk 0:00:04.1]} 35. Bc5 {[%clk 0:00:20.4]} 35... Be5+ {[%clk
0:00:03.2]} 36. g3 {[%clk 0:00:20.9]} 36... Bxd6 {[%clk 0:00:03.7]} 37. Bxd6+
{[%clk 0:00:19.3]} 37... Rxd6 {[%clk 0:00:04.6]} 38. Qc7+ {[%clk 0:00:19.6]}
38... Rd7 {[%clk 0:00:05.2]} 39. Qc5+ {[%clk 0:00:20.3]} 39... Kf7 {[%clk
0:00:05.8]} 40. Qc6 {[%clk 0:00:18.3]} 40... Rbd1 {[%clk 0:00:05.7]} 41. a5
{[%clk 0:00:18.1]} 41... R1d6 {[%clk 0:00:05.1]} 42. Qb5 {[%clk 0:00:17.8]}
42... Rd2 {[%clk 0:00:03.8]} 43. Kh1 {[%clk 0:00:17.4]} 43... Rd1+ {[%clk
0:00:03.2]} 44. Kg2 {[%clk 0:00:17.6]} 44... R7d2 {[%clk 0:00:04.1]} 45. a6
{[%clk 0:00:17.6]} 45... e3 {[%clk 0:00:03.8]} 46. Qb7+ {[%clk 0:00:17]} 46...
Kf6 {[%clk 0:00:04.4]} 47. a7 {[%clk 0:00:15.6]} 47... Rxf2+ {[%clk 0:00:04.1]}
48. Kh3 {[%clk 0:00:16.3]} 48... Rdd2 {[%clk 0:00:03.1]} 49. Qh1 {[%clk
0:00:15.6]} 49... f4 {[%clk 0:00:01.2]} 50. a8=Q {[%clk 0:00:15.9]} 50... f3
{[%clk 0:00:01.2]} 51. Qaxf3+ {[%clk 0:00:15]} 51... Rxf3 {[%clk 0:00:01.7]} 52.
Qxf3+ {[%clk 0:00:15.9]} 52... Ke7 {[%clk 0:00:02.2]} 53. Qxe3 {[%clk
0:00:16.6]} 53... Rd6 {[%clk 0:00:02.9]} 54. Qc5 {[%clk 0:00:16.6]} 54... Kd7
{[%clk 0:00:03]} 55. Qb5+ {[%clk 0:00:17.3]} 55... Ke7 {[%clk 0:00:03.2]} 56. c4
{[%clk 0:00:18]} 56... Rd3 {[%clk 0:00:02.7]} 57. c5 {[%clk 0:00:18.4]} 57...
Rd5 {[%clk 0:00:03.3]} 58. Qb7+ {[%clk 0:00:18.2]} 58... Kf6 {[%clk 0:00:04]}
59. c6 {[%clk 0:00:18.9]} 59... Rxh5+ {[%clk 0:00:04.8]} 60. Kg2 {[%clk
0:00:18.9]} 60... Rb5 {[%clk 0:00:05.5]} 61. Qxb5 {[%clk 0:00:18.9]} 1-0

[Event "Early-Titled-Tuesday-Blitz-July-09-2024"]
[Site "Chess.com"]
[Date "2024.07.09"]
[Round "6"]
[White "gau248"]
[Black "Radislav_Atanasov"]
[Result "0-1"]
[WhiteElo "2612"]
[BlackElo "2442"]
[TimeControl "180+1"]
[EndTime "9:09:43 PDT"]
[Termination "Radislav_Atanasov won by checkmate"]

1. e4 {[%clk 0:03:00.9]} 1... e5 {[%clk 0:02:59]} 2. Nf3 {[%clk 0:03:00.2]} 2...
Nc6 {[%clk 0:02:58.4]} 3. Bb5 {[%clk 0:03:00.4]} 3... a6 {[%clk 0:02:58]} 4. Ba4
{[%clk 0:03:00]} 4... Nf6 {[%clk 0:02:58.1]} 5. O-O {[%clk 0:02:59.1]} 5... Nxe4
{[%clk 0:02:58]} 6. d4 {[%clk 0:02:54.8]} 6... b5 {[%clk 0:02:57.7]} 7. Bb3
{[%clk 0:02:54.4]} 7... d5 {[%clk 0:02:57.9]} 8. dxe5 {[%clk 0:02:51.4]} 8...
Be6 {[%clk 0:02:57.8]} 9. Nbd2 {[%clk 0:02:48.7]} 9... Nc5 {[%clk 0:02:55.5]}
10. c3 {[%clk 0:02:48.9]} 10... d4 {[%clk 0:02:55.3]} 11. Bc2 {[%clk 0:02:41.3]}
11... d3 {[%clk 0:02:51.5]} 12. Bb1 {[%clk 0:02:41.4]} 12... Qd5 {[%clk
0:02:35.4]} 13. Re1 {[%clk 0:02:29.2]} 13... Rd8 {[%clk 0:02:34.5]} 14. b4
{[%clk 0:02:28.7]} 14... Na4 {[%clk 0:02:33.3]} 15. c4 {[%clk 0:02:14.5]} 15...
Qd7 {[%clk 0:02:03.6]} 16. a3 {[%clk 0:02:03.2]} 16... Nc3 {[%clk 0:01:58.6]}
17. Qb3 {[%clk 0:02:03.1]} 17... Nxb1 {[%clk 0:01:58.2]} 18. Rxb1 {[%clk
0:02:02.6]} 18... Be7 {[%clk 0:01:44.2]} 19. Bb2 {[%clk 0:02:02.1]} 19... O-O
{[%clk 0:01:43.6]} 20. Qc3 {[%clk 0:02:01.9]} 20... bxc4 {[%clk 0:01:28.9]} 21.
Nxc4 {[%clk 0:02:00.3]} 21... Qd5 {[%clk 0:00:59.4]} 22. Ne3 {[%clk 0:01:40.6]}
22... Qb5 {[%clk 0:00:54.6]} 23. Rbc1 {[%clk 0:01:25.9]} 23... Nxb4 {[%clk
0:00:48.2]} 24. Nd4 {[%clk 0:01:19.8]} 24... Rxd4 {[%clk 0:00:44.5]} 25. Qxd4
{[%clk 0:01:19.6]} 25... Rd8 {[%clk 0:00:38.8]} 26. Qxd8+ {[%clk 0:01:02.6]}
26... Bxd8 {[%clk 0:00:38.3]} 27. axb4 {[%clk 0:01:03.5]} 27... d2 {[%clk
0:00:29.7]} 28. Red1 {[%clk 0:00:29.6]} 28... dxc1=Q {[%clk 0:00:28.9]} 29. Bxc1
{[%clk 0:00:29.6]} 29... Be7 {[%clk 0:00:28.4]} 30. Nc2 {[%clk 0:00:28.6]} 30...
h6 {[%clk 0:00:25]} 31. g3 {[%clk 0:00:27.6]} 31... Bb3 {[%clk 0:00:21.8]} 32.
Rd2 {[%clk 0:00:27.1]} 32... Bxb4 {[%clk 0:00:19.5]} 33. Nd4 {[%clk 0:00:27]}
33... Bxd2 {[%clk 0:00:17]} 34. Nxb5 {[%clk 0:00:27.5]} 34... Bxc1 {[%clk
0:00:16.5]} 35. Nxc7 {[%clk 0:00:28.4]} 35... a5 {[%clk 0:00:15.6]} 36. Na6
{[%clk 0:00:27.7]} 36... a4 {[%clk 0:00:15.7]} 37. Nc5 {[%clk 0:00:28.1]} 37...
Bc2 {[%clk 0:00:14.9]} 38. Nxa4 {[%clk 0:00:28]} 38... Bxa4 {[%clk 0:00:14.8]}
39. f4 {[%clk 0:00:28.3]} 39... Bc6 {[%clk 0:00:15.4]} 40. Kf2 {[%clk
0:00:28.3]} 40... Ba3 {[%clk 0:00:16.2]} 41. Ke3 {[%clk 0:00:29.2]} 41... Bc5+
{[%clk 0:00:16.7]} 42. Ke2 {[%clk 0:00:27.3]} 42... Bd5 {[%clk 0:00:16.7]} 43.
h4 {[%clk 0:00:27.4]} 43... Kf8 {[%clk 0:00:17.6]} 44. g4 {[%clk 0:00:27.7]}
44... Ke7 {[%clk 0:00:18.5]} 45. g5 {[%clk 0:00:27.9]} 45... hxg5 {[%clk
0:00:18]} 46. hxg5 {[%clk 0:00:27.6]} 46... g6 {[%clk 0:00:18.1]} 47. Kd3 {[%clk
0:00:26.8]} 47... Ke6 {[%clk 0:00:18.4]} 48. Ke2 {[%clk 0:00:27]} 48... Kf5
{[%clk 0:00:18.7]} 49. Kf1 {[%clk 0:00:27.6]} 49... Kxf4 {[%clk 0:00:19]} 50. e6
{[%clk 0:00:28.5]} 50... Bxe6 {[%clk 0:00:18.8]} 51. Ke2 {[%clk 0:00:26.4]}
51... Kxg5 {[%clk 0:00:19.3]} 52. Kd3 {[%clk 0:00:26.1]} 52... Kf5 {[%clk
0:00:19.5]} 53. Kc3 {[%clk 0:00:25.2]} 53... Bd5 {[%clk 0:00:20.1]} 54. Kd3
{[%clk 0:00:25.5]} 54... g5 {[%clk 0:00:20.8]} 55. Ke2 {[%clk 0:00:26]} 55...
Kf4 {[%clk 0:00:21.1]} 56. Kf1 {[%clk 0:00:25.6]} 56... f5 {[%clk 0:00:21.4]}
57. Ke2 {[%clk 0:00:26.5]} 57... Kg3 {[%clk 0:00:21.4]} 58. Kd3 {[%clk
0:00:27.4]} 58... f4 {[%clk 0:00:21.4]} 59. Ke2 {[%clk 0:00:28.3]} 59... f3+
{[%clk 0:00:21.4]} 60. Kd3 {[%clk 0:00:29.2]} 60... f2 {[%clk 0:00:21.3]} 61.
Kc3 {[%clk 0:00:30.1]} 61... f1=Q {[%clk 0:00:20.7]} 62. Kb2 {[%clk 0:00:30.3]}
62... Kf3 {[%clk 0:00:21]} 63. Kc3 {[%clk 0:00:29]} 63... g4 {[%clk 0:00:21.4]}
64. Kd2 {[%clk 0:00:29]} 64... g3 {[%clk 0:00:21.3]} 65. Kc3 {[%clk 0:00:29.7]}
65... g2 {[%clk 0:00:21.5]} 66. Kc2 {[%clk 0:00:30.6]} 66... g1=Q {[%clk
0:00:20.4]} 67. Kc3 {[%clk 0:00:31.5]} 67... Qd1 {[%clk 0:00:19.4]} 68. Kb2
{[%clk 0:00:30.2]} 68... Qd2# {[%clk 0:00:18.3]} 0-1

[Event "Early-Titled-Tuesday-Blitz-July-09-2024"]
[Site "Chess.com"]
[Date "2024.07.09"]
[Round "6"]
[White "FerAsensio2024"]
[Black "Chessdude1987"]
[Result "1-0"]
[WhiteElo "2534"]
[BlackElo "2329"]
[TimeControl "180+1"]
[EndTime "9:09:43 PDT"]
[Termination "FerAsensio2024 won on time"]

1. d4 {[%clk 0:02:55.9]} 1... e6 {[%clk 0:03:00.3]} 2. Bf4 {[%clk 0:02:53.8]}
2... f5 {[%clk 0:03:00.1]} 3. Nc3 {[%clk 0:02:52.7]} 3... Nf6 {[%clk 0:02:59.9]}
4. e3 {[%clk 0:02:50.5]} 4... Bb4 {[%clk 0:02:59.5]} 5. Ne2 {[%clk 0:02:49.8]}
5... O-O {[%clk 0:02:48.8]} 6. a3 {[%clk 0:02:48.4]} 6... Bd6 {[%clk 0:02:37.5]}
7. Bxd6 {[%clk 0:02:48.1]} 7... cxd6 {[%clk 0:02:37.7]} 8. g3 {[%clk 0:02:43.9]}
8... d5 {[%clk 0:02:35.8]} 9. Bg2 {[%clk 0:02:39.7]} 9... d6 {[%clk 0:02:36]}
10. Nf4 {[%clk 0:02:39.6]} 10... Kh8 {[%clk 0:02:34.5]} 11. h4 {[%clk
0:02:39.8]} 11... Nc6 {[%clk 0:02:27.4]} 12. Qe2 {[%clk 0:02:22.3]} 12... Ne4
{[%clk 0:02:05]} 13. Nxe4 {[%clk 0:02:16.9]} 13... dxe4 {[%clk 0:02:00.2]} 14.
O-O-O {[%clk 0:02:09.7]} 14... d5 {[%clk 0:01:53.5]} 15. h5 {[%clk 0:01:59.5]}
15... Qg5 {[%clk 0:01:52.3]} 16. Rh4 {[%clk 0:01:45.1]} 16... Ne7 {[%clk
0:01:49.2]} 17. Rdh1 {[%clk 0:01:45]} 17... Kg8 {[%clk 0:01:47.2]} 18. Qb5
{[%clk 0:01:36.8]} 18... a6 {[%clk 0:01:41.6]} 19. Qc5 {[%clk 0:01:32.5]} 19...
Qf6 {[%clk 0:01:20.8]} 20. g4 {[%clk 0:01:21.6]} 20... Bd7 {[%clk 0:01:11.9]}
21. Qd6 {[%clk 0:01:18.4]} 21... Rfd8 {[%clk 0:01:07.2]} 22. g5 {[%clk
0:00:46.1]} 22... Qxg5 {[%clk 0:01:05.8]} 23. Nxe6 {[%clk 0:00:46.4]} 23... Qf6
{[%clk 0:00:57.7]} 24. Qg3 {[%clk 0:00:13.8]} 24... Bxe6 {[%clk 0:00:56.3]} 25.
Rg1 {[%clk 0:00:11.9]} 25... Kh8 {[%clk 0:00:53]} 26. f3 {[%clk 0:00:11.9]}
26... Rac8 {[%clk 0:00:48.1]} 27. c3 {[%clk 0:00:11.5]} 27... Ng8 {[%clk
0:00:39.1]} 28. Kd2 {[%clk 0:00:08.1]} 28... Nh6 {[%clk 0:00:38.8]} 29. Rf4
{[%clk 0:00:07.1]} 29... Qe7 {[%clk 0:00:31.7]} 30. fxe4 {[%clk 0:00:07.4]}
30... fxe4 {[%clk 0:00:22.7]} 31. Bh3 {[%clk 0:00:04.1]} 31... Bxh3 {[%clk
0:00:19.1]} 32. Qxh3 {[%clk 0:00:05]} 32... Rf8 {[%clk 0:00:17.5]} 33. Rg2
{[%clk 0:00:05.6]} 33... Rce8 {[%clk 0:00:17.1]} 34. Qg3 {[%clk 0:00:03.2]}
34... Rxf4 {[%clk 0:00:16.6]} 35. Qxf4 {[%clk 0:00:04.1]} 35... Rf8 {[%clk
0:00:16.2]} 36. Qg3 {[%clk 0:00:03.1]} 36... Qf6 {[%clk 0:00:15.7]} 37. Kc2
{[%clk 0:00:02.3]} 37... Nf5 {[%clk 0:00:14.5]} 38. Qf4 {[%clk 0:00:01.4]} 38...
Nxd4+ {[%clk 0:00:14]} 39. cxd4 {[%clk 0:00:02.3]} 39... Qxf4 {[%clk 0:00:14.2]}
40. exf4 {[%clk 0:00:03.2]} 40... Rxf4 {[%clk 0:00:14.4]} 41. Rg5 {[%clk
0:00:02.4]} 41... h6 {[%clk 0:00:06.3]} 42. Rxd5 {[%clk 0:00:02.4]} 42... Kh7
{[%clk 0:00:06.9]} 43. Re5 {[%clk 0:00:01.5]} 43... e3 {[%clk 0:00:06.5]} 44.
Kd3 {[%clk 0:00:01.8]} 44... Rf2 {[%clk 0:00:05.8]} 45. Rxe3 {[%clk 0:00:01.8]}
45... Rxb2 {[%clk 0:00:05.8]} 46. Ke4 {[%clk 0:00:02.7]} 46... Rh2 {[%clk
0:00:05.4]} 47. d5 {[%clk 0:00:02.3]} 47... Rxh5 {[%clk 0:00:05.3]} 48. d6
{[%clk 0:00:03]} 48... Rh1 {[%clk 0:00:03.8]} 49. d7 {[%clk 0:00:02.9]} 49...
Rh4+ {[%clk 0:00:03.8]} 50. Ke5 {[%clk 0:00:03]} 50... Rh5+ {[%clk 0:00:03.8]}
51. Ke6 {[%clk 0:00:03.1]} 51... Rb5 {[%clk 0:00:01.8]} 52. d8=Q {[%clk
0:00:03.3]} 52... Re5+ {[%clk 0:00:02.1]} 53. Kxe5 {[%clk 0:00:03.4]} 1-0

[Event "Early-Titled-Tuesday-Blitz-July-09-2024"]
[Site "Chess.com"]
[Date "2024.07.09"]
[Round "6"]
[White "DenLaz"]
[Black "sergoy"]
[Result "1-0"]
[WhiteElo "3155"]
[BlackElo "2949"]
[TimeControl "180+1"]
[EndTime "9:09:44 PDT"]
[Termination "DenLaz won on time"]

1. d4 {[%clk 0:03:00.9]} 1... Nf6 {[%clk 0:03:00.1]} 2. c4 {[%clk 0:03:01.3]}
2... e6 {[%clk 0:03:00]} 3. Nf3 {[%clk 0:03:01.8]} 3... d5 {[%clk 0:03:00.2]} 4.
g3 {[%clk 0:03:02]} 4... Bb4+ {[%clk 0:03:00.5]} 5. Bd2 {[%clk 0:03:02]} 5...
Be7 {[%clk 0:03:01]} 6. Bg2 {[%clk 0:03:02.6]} 6... O-O {[%clk 0:03:01.4]} 7.
O-O {[%clk 0:03:03]} 7... c6 {[%clk 0:03:01.6]} 8. Qc2 {[%clk 0:03:03.6]} 8...
Nbd7 {[%clk 0:03:02.1]} 9. Bf4 {[%clk 0:03:04]} 9... a5 {[%clk 0:03:02.4]} 10.
Rd1 {[%clk 0:03:01.3]} 10... a4 {[%clk 0:03:02.2]} 11. Ne5 {[%clk 0:02:55.6]}
11... Qa5 {[%clk 0:03:00.8]} 12. Nxd7 {[%clk 0:02:53]} 12... Bxd7 {[%clk
0:02:59.2]} 13. c5 {[%clk 0:02:53.4]} 13... b6 {[%clk 0:02:57.8]} 14. Bc7 {[%clk
0:02:51.4]} 14... Bd8 {[%clk 0:02:58.2]} 15. Bd6 {[%clk 0:02:51.9]} 15... Re8
{[%clk 0:02:58]} 16. Nd2 {[%clk 0:02:51.7]} 16... bxc5 {[%clk 0:02:46.8]} 17.
Bxc5 {[%clk 0:02:52.6]} 17... Bb6 {[%clk 0:02:38.9]} 18. b4 {[%clk 0:02:45.8]}
18... Qa6 {[%clk 0:02:27.3]} 19. e3 {[%clk 0:02:40.3]} 19... Bxc5 {[%clk
0:02:22.7]} 20. Qxc5 {[%clk 0:02:33.7]} 20... a3 {[%clk 0:02:14]} 21. Rab1
{[%clk 0:02:30.4]} 21... Reb8 {[%clk 0:02:10.3]} 22. Rb3 {[%clk 0:02:26.1]}
22... Be8 {[%clk 0:01:55.4]} 23. Bf1 {[%clk 0:02:20.1]} 23... Qa4 {[%clk
0:01:52.7]} 24. Bd3 {[%clk 0:02:02.8]} 24... h6 {[%clk 0:01:41]} 25. Rc1 {[%clk
0:02:00.1]} 25... Rb7 {[%clk 0:01:25]} 26. Qc3 {[%clk 0:01:46.6]} 26... Rab8
{[%clk 0:00:46.5]} 27. Rcb1 {[%clk 0:01:41.8]} 27... Ra8 {[%clk 0:00:45.4]} 28.
Nf3 {[%clk 0:01:25.4]} 28... Nd7 {[%clk 0:00:44.2]} 29. Ne1 {[%clk 0:01:24.5]}
29... e5 {[%clk 0:00:29.2]} 30. dxe5 {[%clk 0:01:14.5]} 30... c5 {[%clk
0:00:29.6]} 31. bxc5 {[%clk 0:01:14.3]} 31... Rxb3 {[%clk 0:00:29.8]} 32. Rxb3
{[%clk 0:01:12.6]} 32... Rc8 {[%clk 0:00:23.3]} 33. Rxa3 {[%clk 0:00:55]} 33...
Qd1 {[%clk 0:00:23.5]} 34. Bc2 {[%clk 0:00:55.3]} 34... Qg4 {[%clk 0:00:22.5]}
35. Nd3 {[%clk 0:00:53.6]} 35... Nf8 {[%clk 0:00:16.5]} 36. Nf4 {[%clk
0:00:37.8]} 36... Bc6 {[%clk 0:00:16.7]} 37. Qd4 {[%clk 0:00:34.9]} 37... Qd7
{[%clk 0:00:16.6]} 38. Rb3 {[%clk 0:00:32.9]} 38... Ra8 {[%clk 0:00:15.5]} 39.
Rb2 {[%clk 0:00:32.7]} 39... Ra3 {[%clk 0:00:08.7]} 40. Bb3 {[%clk 0:00:32.9]}
40... Ne6 {[%clk 0:00:08.5]} 41. Nxe6 {[%clk 0:00:33]} 41... fxe6 {[%clk
0:00:09.4]} 42. Rd2 {[%clk 0:00:32.3]} 42... Qa7 {[%clk 0:00:08.5]} 43. h4
{[%clk 0:00:32]} 43... Ra5 {[%clk 0:00:08]} 44. Rc2 {[%clk 0:00:32.5]} 44... Qb7
{[%clk 0:00:07.8]} 45. Kh2 {[%clk 0:00:32.7]} 45... Rb5 {[%clk 0:00:08.2]} 46.
Qd1 {[%clk 0:00:25.5]} 46... Rb4 {[%clk 0:00:08.2]} 47. Rd2 {[%clk 0:00:26]}
47... Re4 {[%clk 0:00:08.1]} 48. Rd4 {[%clk 0:00:23.5]} 48... Rxe5 {[%clk
0:00:08.3]} 49. Ba4 {[%clk 0:00:23.4]} 49... Rf5 {[%clk 0:00:07.4]} 50. Rf4
{[%clk 0:00:20.9]} 50... Bxa4 {[%clk 0:00:03.5]} 51. Qxa4 {[%clk 0:00:20.8]}
51... Rxf4 {[%clk 0:00:03.1]} 52. Qxf4 {[%clk 0:00:20.3]} 52... Qb2 {[%clk
0:00:03.8]} 53. c6 {[%clk 0:00:20.2]} 53... Qxa2 {[%clk 0:00:03.4]} 54. c7
{[%clk 0:00:18.9]} 54... Qc2 {[%clk 0:00:03.9]} 55. Kg2 {[%clk 0:00:19.5]} 55...
Kh7 {[%clk 0:00:04.2]} 56. h5 {[%clk 0:00:17.4]} 56... Qc6 {[%clk 0:00:03.7]}
57. Kh2 {[%clk 0:00:17]} 57... Qc2 {[%clk 0:00:03.8]} 58. Qf7 {[%clk 0:00:15.6]}
58... e5 {[%clk 0:00:01]} 59. Qg6+ {[%clk 0:00:15.8]} 1-0